bitfinex/quotes_SOLUSD_20250517
["timestamp","ask_amount","ask_price","bid_price","bid_amount"]
[1747493030682,5.96125186,167.75,167.65,5.96480763]
[1747493031188,5.96125186,167.75,167.66,26.0]
[1747493031690,5.96125186,167.75,167.67,31.96409614]
[1747493032867,20.86438151,167.75,167.63,5.96551929]
[1747493033075,20.86438151,167.75,167.66,26.0]
[1747493034003,126.73010914,167.74,167.66,26.0]
[1747493034169,44.54196267,167.73,167.65,31.96455379]
[1747493034477,126.73010914,167.72,167.65,31.96455379]
[1747493034659,126.73010914,167.72,167.65,26.0]
[1747493034859,126.73010914,167.72,167.65,5.96479561]
[1747493036888,5.96267366,167.71,167.65,5.96479561]
[1747493037883,132.69254142,167.72,167.65,5.96479561]
[1747493038078,126.73010914,167.72,167.66,26.0]
[1747493038277,146.03010914,167.72,167.66,26.0]
[1747493039872,146.03010914,167.72,167.67,5.96409614]
[1747493040486,151.99250018,167.72,167.67,5.96409614]
[1747493041991,132.69250018,167.72,167.67,5.96409614]
[1747493042287,146.03010914,167.72,167.67,5.96409614]
[1747493047096,151.99252876,167.72,167.66,31.96419229]
[1747493047389,151.99252876,167.72,167.66,26.0]
[1747493047762,134.50110914,167.71,167.6,19.16301504]
[1747493048070,126.73010914,167.7,167.61,31.96623113]
[1747493048392,126.73010914,167.7,167.6,10.21336907]
[1747493048602,5.96338481,167.69,167.6,10.21336907]
[1747493048901,5.96338481,167.69,167.61,26.0]
[1747493049074,126.73010914,167.68,167.6,4.24691238]
[1747493049384,126.73010914,167.68,167.58,5.96702472]
[1747493049385,19.3,167.67,167.58,5.96702472]
[1747493049589,146.01010914,167.66,167.58,5.96702472]
[1747493050273,5.96480763,167.65,167.58,5.96702472]
[1747493051489,5.96480763,167.65,167.58,26.0]
[1747493052690,5.96480763,167.65,167.58,31.96721722]
[1747493054487,151.97465276,167.66,167.58,31.96721722]
[1747493054866,146.01010914,167.66,167.58,31.96721722]
[1747493055067,146.01010914,167.66,167.58,46.88546522]
[1747493055578,151.97469722,167.66,167.58,46.88546522]
[1747493055883,151.97469722,167.66,167.58,31.96721722]
[1747493057895,146.01010914,167.66,167.58,31.96721722]
[1747493058100,126.73010914,167.65,167.58,31.96721722]
[1747493058277,126.73010914,167.65,167.59,18.64964886]
[1747493058591,146.01010914,167.68,167.63,5.96551929]
[1747493064577,126.73010914,167.68,167.63,5.96551929]
[1747493065877,126.73010914,167.68,167.63,20.87931753]
[1747493067101,19.28,167.7,167.63,20.87931753]
[1747493067804,146.01010914,167.71,167.63,20.87931753]
[1747493070210,126.73010914,167.71,167.63,20.87931753]
[1747493070376,126.73010914,167.71,167.67,26.0]
[1747493070702,126.73010914,167.74,167.67,26.0]
[1747493070881,146.01010914,167.74,167.67,26.0]
[1747493071798,146.01010914,167.74,167.68,5.96374045]
[1747493072176,126.73010914,167.74,167.68,5.96374045]
[1747493072377,146.01010914,167.74,167.68,5.96374045]
[1747493072705,126.73010914,167.74,167.68,5.96374045]
[1747493073003,146.01010914,167.74,167.68,5.96374045]
[1747493077409,126.73010914,167.74,167.68,5.96374045]
[1747493077704,145.99010914,167.74,167.68,5.96374045]
[1747493081209,126.73010914,167.74,167.68,5.96374045]
[1747493081414,126.73010914,167.74,167.68,20.87309159]
[1747493091730,139.33654723,167.74,167.66,5.96418392]
[1747493091899,126.73010914,167.73,167.66,5.96418392]
[1747493092101,126.73010914,167.73,167.64,5.96516344]
[1747493092302,126.73010914,167.72,167.63,10.21236379]
[1747493092498,1.6259,167.7,167.63,4.24691238]
[1747493092723,145.99010914,167.69,167.63,4.24691238]
[1747493092913,6.6447,167.68,167.63,4.24691238]
[1747493093221,126.73010914,167.67,167.63,4.24691238]
[1747493093436,126.73010914,167.67,167.63,10.21226036]
[1747493094064,126.73010914,167.67,167.63,5.96534798]
[1747493094337,30.0,167.66,167.59,26.0]
[1747493094699,30.0,167.66,167.58,5.9672992]
[1747493095222,30.0,167.66,167.58,31.9672992]
[1747493096826,5.96480763,167.65,167.58,31.9672992]
[1747493098311,35.96449729,167.66,167.58,31.9672992]
[1747493098511,30.0,167.66,167.58,31.9672992]
[1747493098825,126.73010914,167.67,167.58,46.8855472]
[1747493099129,19.26,167.66,167.61,26.0]
[1747493100529,126.73010914,167.67,167.62,31.96587519]
[1747493100734,126.73010914,167.67,167.65,26.0]
[1747493100909,145.99010914,167.7,167.65,26.0]
[1747493102414,145.99010914,167.7,167.65,31.96462978]
[1747493102617,151.95321604,167.7,167.65,26.0]
[1747493102999,145.99010914,167.7,167.65,26.0]
[1747493103203,151.95319763,167.7,167.65,26.0]
[1747493103630,145.99010914,167.7,167.65,31.96477398]
[1747493104413,145.99010914,167.7,167.65,26.0]
[1747493104727,151.95321577,167.7,167.64,26.0]
[1747493105738,145.99010914,167.7,167.64,26.0]
[1747493107238,151.9531616,167.7,167.64,26.0]
[1747493109118,126.73010914,167.69,167.64,26.0]
[1747493109513,126.73010914,167.69,167.64,31.9651254]
[1747493110832,126.73010914,167.69,167.64,46.87803401]
[1747493111133,126.73010914,167.69,167.65,18.64964886]
[1747493111319,19.24,167.74,167.65,18.64964886]
[1747493111717,19.24,167.74,167.69,26.0]
[1747493113815,19.24,167.74,167.7,5.96302921]
[1747493115237,126.73010914,167.75,167.7,5.96302921]
[1747493118542,126.73010914,167.78,167.74,5.96160724]
[1747493119946,126.73010914,167.78,167.72,31.96196381]
[1747493121631,132.69031185,167.78,167.72,31.96196381]
[1747493121823,132.69031185,167.78,167.72,26.0]
[1747493122435,132.69031185,167.78,167.72,31.96230474]
[1747493124061,126.73010914,167.77,167.72,31.96230474]
[1747493125150,126.73010914,167.77,167.75,26.0]
[1747493125823,126.73010914,167.77,167.73,26.0]
[1747493126331,126.73010914,167.77,167.73,31.96190302]
[1747493127023,126.73010914,167.77,167.73,26.0]
[1747493127239,132.69077084,167.77,167.73,26.0]
[1747493128054,126.73010914,167.77,167.73,26.0]
[1747493128348,126.73010914,167.77,167.73,31.96187075]
[1747493132160,126.73010914,167.77,167.72,31.9621954]
[1747493136255,126.73010914,167.77,167.72,46.86799077]
[1747493136462,126.73010914,167.77,167.75,26.0]
[1747493137057,126.73010914,167.77,167.75,31.96097705]
[1747493138851,126.73010914,167.77,167.75,26.0]
[1747493141469,126.73010914,167.77,167.75,31.96122342]
[1747493148072,145.95010914,167.81,167.75,31.96122342]
[1747493148274,151.90927231,167.81,167.75,26.0]
[1747493148866,151.90927231,167.81,167.75,31.96115875]
[1747493150065,145.95010914,167.81,167.75,31.96115875]
[1747493151157,126.73010914,167.81,167.75,46.8642884]
[1747493151681,126.73010914,167.85,167.78,26.0]
[1747493151895,126.73010914,167.85,167.8,26.0]
[1747493153176,126.73010914,167.85,167.81,5.95912043]
[1747493154652,28.94168561,167.89,167.82,18.64964886]
[1747493154865,126.73010914,167.9,167.82,18.64964886]
[1747493154866,145.95010914,167.9,167.82,18.64964886]
[1747493155383,126.73010914,167.9,167.84,24.60770415]
[1747493158591,132.68610655,167.9,167.84,5.95805529]
[1747493159282,126.73010914,167.9,167.84,5.95805529]
[1747493159674,132.68615788,167.9,167.84,5.95805529]
[1747493160387,132.68615788,167.9,167.8,18.64964886]
[1747493160688,132.68615788,167.9,167.8,5.95947556]
[1747493160689,147.57597324,167.9,167.8,5.95947556]
[1747493161291,126.73010914,167.89,167.82,26.0]
[1747493161466,145.93010914,167.89,167.82,26.0]
[1747493162490,5.95663569,167.88,167.82,26.0]
[1747493163588,5.95663569,167.88,167.82,31.95866082]
[1747493163891,5.95663569,167.88,167.82,26.0]
[1747493164768,5.45663569,167.88,167.82,26.0]
[1747493166306,126.73010914,167.87,167.82,26.0]
[1747493166671,126.73010914,167.87,167.82,31.95875548]
[1747493168714,19.2,167.89,167.83,18.64964886]
[1747493169222,5.95584223,167.91,167.83,18.64964886]
[1747493170908,5.95584223,167.91,167.84,5.95805529]
[1747493172296,151.88544716,167.92,167.84,5.95805529]
[1747493172685,126.73010914,167.92,167.87,26.0]
[1747493174096,126.73010914,167.92,167.88,5.95663569]
[1747493174612,126.73010914,167.92,167.88,20.84822492]
[1747493175708,126.73010914,167.92,167.88,5.95663569]
[1747493177829,126.73010914,167.92,167.87,5.95690051]
[1747493177993,132.68540465,167.92,167.85,5.95770032]
[1747493178335,126.73010914,167.91,167.85,5.95770032]
[1747493178493,25.15592614,167.9,167.86,26.0]
[1747493178695,25.15592614,167.9,167.83,5.9581055]
[1747493179325,25.15592614,167.9,167.82,31.95866401]
[1747493180588,19.2,167.9,167.82,31.95866401]
[1747493180814,19.2,167.9,167.85,26.0]
[1747493181014,19.2,167.9,167.86,26.0]
[1747493182512,19.2,167.9,167.87,5.95699052]
[1747493183211,19.2,167.9,167.86,26.0]
[1747493183387,19.2,167.9,167.86,31.95728255]
[1747493183712,19.2,167.9,167.86,26.0]
[1747493184613,25.15605948,167.9,167.84,26.0]
[1747493185387,126.73010914,167.89,167.84,26.0]
[1747493186596,5.95663569,167.88,167.84,26.0]
[1747493186809,132.68649803,167.89,167.84,26.0]
[1747493189816,126.73010914,167.88,167.82,26.0]
[1747493190428,126.73010914,167.88,167.82,31.95853862]
[1747493190794,126.73010914,167.88,167.82,46.85545197]
[1747493191022,126.73010914,167.88,167.83,18.64964886]
[1747493191210,126.73010914,167.88,167.86,26.0]
[1747493191514,19.2,167.92,167.86,26.0]
[1747493192525,19.2,167.92,167.86,31.95700302]
[1747493192730,25.15523256,167.92,167.86,31.95700302]
[1747493193221,19.2,167.92,167.86,31.95700302]
[1747493193533,126.73010914,167.93,167.9,26.0]
[1747493194628,126.73010914,167.93,167.9,31.95575635]
[1747493197408,126.73010914,167.93,167.9,26.0]
[1747493198613,126.73010914,167.93,167.89,26.0]
[1747493198921,132.68498589,167.93,167.88,26.0]
[1747493199113,126.73010914,167.93,167.88,26.0]
[1747493199514,132.68502741,167.93,167.87,26.0]
[1747493200624,132.68502741,167.93,167.87,31.9569069]
[1747493200927,132.68502741,167.93,167.87,5.9569069]
[1747493201425,126.73010914,167.93,167.87,5.9569069]
[1747493202008,132.68509563,167.93,167.87,5.9569069]
[1747493208427,126.73010914,167.93,167.87,5.9569069]
[1747493212135,132.68502358,167.93,167.87,5.9569069]
[1747493212449,5.95557143,167.91,167.86,31.95729213]
[1747493213131,5.95557143,167.91,167.86,26.0]
[1747493213437,5.95557143,167.91,167.84,4.20087339]
[1747493213631,126.73010914,167.9,167.84,4.20087339]
[1747493213817,145.91010914,167.89,167.84,4.20087339]
[1747493214539,145.91010914,167.89,167.83,5.95813688]
[1747493215137,151.86645864,167.89,167.83,5.95813688]
[1747493216018,30.0,167.88,167.83,5.95813688]
[1747493217718,30.0,167.88,167.83,20.85416262]
[1747493218021,30.0,167.88,167.84,18.64964886]
[1747493218929,126.73010914,167.89,167.84,18.64964886]
[1747493219545,126.73010914,167.89,167.85,5.95770032]
[1747493220545,132.68647216,167.89,167.82,5.95865557]
[1747493220745,126.73010914,167.88,167.83,26.0]
[1747493220921,126.73010914,167.87,167.83,26.0]
[1747493221835,132.68714159,167.87,167.83,26.0]
[1747493222342,126.73010914,167.87,167.83,31.95837055]
[1747493228855,145.91010914,167.91,167.83,46.85439629]
[1747493230330,126.73010914,167.91,167.83,46.85439629]
[1747493231655,126.73010914,167.91,167.84,18.64964886]
[1747493231853,126.73010914,167.91,167.87,26.0]
[1747493232155,155.08894594,167.94,167.87,26.0]
[1747493232621,161.04352486,167.94,167.87,26.0]
[1747493232825,161.04352486,167.94,167.88,5.95663569]
[1747493233928,161.04352486,167.94,167.87,26.0]
[1747493234253,161.04352486,167.94,167.85,26.0]
[1747493234829,161.04352486,167.94,167.86,5.9573454]
[1747493235030,126.73010914,167.93,167.86,5.9573454]
[1747493236442,126.73010914,167.93,167.89,26.0]
[1747493236859,126.73010914,167.93,167.9,5.95592614]
[1747493237435,9.1788368,167.94,167.9,5.95592614]
[1747493239473,126.73010914,167.93,167.88,31.95651016]
[1747493239636,126.73010914,167.93,167.88,26.0]
[1747493240675,126.73010914,167.93,167.88,31.95644882]
[1747493244844,126.73010914,167.93,167.88,46.84803805]
[1747493245048,126.73010914,167.93,167.89,18.64964886]
[1747493246377,9.1788368,167.94,167.93,18.64964886]
[1747493247050,9.1788368,167.94,167.93,24.604511]
[1747493247547,9.1788368,167.94,167.93,26.0]
[1747493247754,9.1788368,167.94,167.92,5.95509336]
[1747493253274,9.1788368,167.94,167.9,5.95564239]
[1747493253578,9.1788368,167.94,167.87,50.11603149]
[1747493253579,9.1788368,167.94,167.89,26.0]
[1747493253755,9.1788368,167.94,167.88,24.60599636]
[1747493254168,9.1788368,167.94,167.89,26.0]
[1747493256010,9.1788368,167.94,167.89,31.95594248]
[1747493263486,9.1788368,167.94,167.9,18.64964886]
[1747493264601,9.1788368,167.94,167.91,5.95557143]
[1747493265416,9.1788368,167.94,167.93,26.0]
[1747493266782,9.1788368,167.94,167.93,31.95486214]
[1747493269015,9.1788368,167.94,167.93,50.604511]
[1747493269514,9.1788368,167.94,167.93,52.133211]
[1747493276491,9.1788368,167.94,167.93,50.604511]
[1747493286295,126.73010914,168.04,167.98,18.64964886]
[1747493286497,133.07810914,168.03,167.95,1.19032694]
[1747493286697,152.27810914,168.03,167.93,31.95486214]
[1747493286919,1.6017,168.02,167.93,31.95486214]
[1747493287518,1.6017,168.02,167.93,26.0]
[1747493288310,5.95202666,168.01,167.93,26.0]
[1747493288516,19.26,168.0,167.92,5.9552054]
[1747493288715,145.99010914,168.0,167.91,26.0]
[1747493289434,6.4496,167.98,167.89,5.95620225]
[1747493289738,6.4496,167.98,167.89,26.0]
[1747493290627,5.95344406,167.97,167.89,31.95616408]
[1747493291004,5.95344406,167.97,167.89,26.0]
[1747493291518,20.83705422,167.97,167.89,26.0]
[1747493291719,126.73010914,167.96,167.89,26.0]
[1747493292040,126.73010914,167.96,167.87,5.95688934]
[1747493292240,1.5196,167.95,167.85,10.15824812]
[1747493292449,19.38,167.94,167.85,36.15824812]
[1747493292742,19.38,167.94,167.88,26.0]
[1747493292920,19.4,167.94,167.88,26.0]
[1747493293125,6.4496,167.98,167.89,18.64964886]
[1747493293126,12.40274882,167.98,167.89,18.64964886]
[1747493293331,19.4,167.96,167.9,26.0]
[1747493294430,19.4,167.96,167.91,5.95557143]
[1747493294919,19.4,167.96,167.9,5.95582286]
[1747493296232,19.4,167.96,167.9,31.95582286]
[1747493296612,25.35386754,167.96,167.9,31.95582286]
[1747493296810,25.35386754,167.96,167.88,5.95656456]
[1747493297038,25.35386754,167.96,167.88,26.0]
[1747493297340,126.73010914,167.95,167.88,26.0]
[1747493298625,5.95450756,167.94,167.88,31.95639702]
[1747493300139,5.95450756,167.94,167.87,5.95687286]
[1747493300140,128.24970914,167.93,167.87,5.95687286]
[1747493300525,134.20483075,167.93,167.86,5.9573454]
[1747493300862,128.24970914,167.93,167.86,5.9573454]
[1747493301226,126.73010914,167.93,167.86,5.9573454]
[1747493301780,5.95448639,167.95,167.8,90.63682959]
[1747493301781,5.95448639,167.95,167.8,51.97682959]
[1747493302057,18.64964886,167.81,167.8,8.40174678]
[1747493302220,1.19119612,167.81,167.8,8.40174678]
[1747493302424,19.98,167.81,167.8,8.40174678]
[1747493302655,25.93912043,167.81,167.8,8.40174678]
[1747493303064,25.93912043,167.81,167.7,5.96295165]
[1747493303222,1.19119612,167.8,167.7,5.96295165]
[1747493303843,1.19119612,167.8,167.71,26.0]
[1747493304029,1.19119612,167.8,167.7,5.96295165]
[1747493304229,1.19119612,167.8,167.71,26.0]
[1747493304444,5.95983074,167.79,167.71,26.0]
[1747493304851,5.95983074,167.79,167.71,31.96258623]
[1747493305247,5.95983074,167.79,167.72,26.0]
[1747493305451,1.19119612,167.78,167.69,5.96306516]
[1747493305625,5.95983074,167.79,167.72,26.0]
[1747493306122,1.19119612,167.78,167.72,26.0]
[1747493306863,5.96054121,167.77,167.72,26.0]
[1747493307757,5.96054121,167.77,167.69,5.96306516]
[1747493308062,5.95983074,167.79,167.7,26.0]
[1747493308231,1.19119612,167.78,167.71,26.0]
[1747493309325,5.96054121,167.77,167.71,26.0]
[1747493310555,5.96018595,167.78,167.71,26.0]
[1747493312476,5.96018595,167.78,167.71,31.96265092]
[1747493314961,5.96018595,167.78,167.72,26.0]
[1747493315593,1.19119612,167.77,167.72,26.0]
[1747493316068,5.96089651,167.76,167.72,26.0]
[1747493316383,127.92130526,167.75,167.68,2.97000002]
[1747493316680,146.53010914,167.75,167.68,2.97000002]
[1747493316887,126.73010914,167.74,167.68,2.97000002]
[1747493317087,1.19119612,167.73,167.68,2.97000002]
[1747493317878,5.96231814,167.72,167.68,2.97000002]
[1747493318892,126.73010914,167.74,167.68,2.97000002]
[1747493319791,132.69192915,167.74,167.68,8.93373593]
[1747493320087,126.73010914,167.74,167.68,8.93373593]
[1747493320579,126.73010914,167.74,167.68,2.97000002]
[1747493320580,1.19119612,167.73,167.68,2.97000002]
[1747493322086,5.96231814,167.72,167.68,2.97000002]
[1747493322984,132.69242728,167.72,167.68,2.97000002]
[1747493323288,1.19119612,167.71,167.68,2.97000002]
[1747493323468,126.73010914,167.7,167.68,2.97000002]
[1747493323876,126.73010914,167.7,167.63,8.0012]
[1747493324071,25.72338481,167.69,167.63,8.0012]
[1747493324663,25.72338481,167.69,167.63,13.96668192]
[1747493326680,25.72338481,167.69,167.63,8.0012]
[1747493326889,25.72338481,167.69,167.63,1.5216]
[1747493329002,25.72338481,167.69,167.63,33.48708897]
[1747493329605,30.0,167.68,167.63,33.48708897]
[1747493330378,25.72338481,167.69,167.63,33.48708897]
[1747493331102,5.96338481,167.69,167.63,33.48708897]
[1747493337313,152.35327017,167.7,167.63,33.48708897]
[1747493338333,1.19119612,167.69,167.63,27.5216]
[1747493338693,1.19119612,167.69,167.63,33.48709946]
[1747493339625,7.15465338,167.69,167.63,33.48709946]
[1747493339832,5.96345726,167.69,167.63,33.48709946]
[1747493342400,7.15465338,167.69,167.63,27.5216]
[1747493350571,7.15465338,167.69,167.63,33.48699573]
[1747493354196,152.35324004,167.7,167.63,33.48699573]
[1747493356591,132.69324004,167.7,167.63,33.48699573]
[1747493356793,152.29324004,167.7,167.63,33.48699573]
[1747493359291,132.69324004,167.7,167.63,33.48699573]
[1747493359493,152.29324004,167.7,167.63,33.48699573]
[1747493359989,7.1549214,167.69,167.63,33.48699573]
[1747493360789,152.29322605,167.7,167.63,33.48699573]
[1747493360979,146.33010914,167.7,167.63,33.48699573]
[1747493361574,146.31010914,167.7,167.63,33.48699573]
[1747493365292,152.27334013,167.7,167.63,7.48699573]
[1747493365477,1.19119612,167.69,167.63,7.48699573]
[1747493366681,152.27334013,167.7,167.63,7.48699573]
[1747493371480,132.69334013,167.7,167.63,7.48699573]
[1747493371681,152.17334013,167.7,167.63,7.48699573]
[1747493372199,126.73010914,167.7,167.63,22.40079397]
[1747493374891,132.69318965,167.7,167.63,22.40079397]
[1747493375688,126.73010914,167.7,167.63,22.40079397]
[1747493379095,132.6931803,167.7,167.63,22.40079397]
[1747493379284,132.6931803,167.7,167.63,7.48699573]
[1747493380080,126.73010914,167.7,167.63,7.48699573]
[1747493383742,127.92130526,167.69,167.61,4.24444941]
[1747493383904,126.73010914,167.68,167.61,4.24444941]
[1747493384100,1.19119612,167.67,167.61,4.24444941]
[1747493384789,1.19119612,167.67,167.61,10.21064536]
[1747493384992,1.19119612,167.67,167.61,4.24444941]
[1747493385410,1.19119612,167.67,167.6,5.96651804]
[1747493385720,5.96445186,167.66,167.59,31.96694313]
[1747493385927,132.694561,167.66,167.59,31.96694313]
[1747493386094,19.42,167.65,167.59,31.96694313]
[1747493388405,146.13010914,167.66,167.59,31.96694313]
[1747493389321,152.09461741,167.66,167.59,31.96694313]
[1747493391431,1.19119612,167.65,167.59,31.96694313]
[1747493391826,152.09461741,167.66,167.59,31.96694313]
[1747493392530,146.13010914,167.66,167.59,31.96694313]
[1747493393407,152.0948957,167.66,167.59,31.96694313]
[1747493395027,146.13010914,167.66,167.59,46.88430096]
[1747493395398,126.73010914,167.66,167.59,46.88430096]
[1747493398333,126.73010914,167.66,167.6,18.64964886]
[1747493398639,126.73010914,167.71,167.63,26.0]
[1747493398812,19.36,167.7,167.63,26.0]
[1747493399014,19.36,167.7,167.64,5.96516344]
[1747493400032,152.07284626,167.71,167.64,5.96516344]
[1747493400210,19.36,167.7,167.64,5.96516344]
[1747493403209,25.32319539,167.7,167.64,5.96516344]
[1747493403537,5.96319539,167.7,167.64,5.96516344]
[1747493403734,25.28319539,167.7,167.64,5.96516344]
[1747493403933,7.15439151,167.7,167.63,5.96544754]
[1747493404138,19.32,167.69,167.64,26.0]
[1747493404642,127.92130526,167.68,167.6,10.2109361]
[1747493404833,126.73010914,167.68,167.6,10.2109361]
[1747493405130,1.19119612,167.67,167.6,10.2109361]
[1747493405330,5.96445186,167.66,167.6,10.2109361]
[1747493405528,1.19119612,167.65,167.6,4.24444941]
[1747493405721,1.19119612,167.65,167.6,26.0]
[1747493406422,7.1554109,167.67,167.6,26.0]
[1747493407127,127.20350914,167.68,167.6,26.0]
[1747493407128,126.73010914,167.68,167.6,26.0]
[1747493407332,19.34,167.67,167.61,5.96623113]
[1747493408249,19.34,167.67,167.61,20.88180895]
[1747493408619,19.34,167.67,167.64,26.0]
[1747493409343,19.34,167.67,167.64,31.96497024]
[1747493410758,19.34,167.67,167.64,26.0]
[1747493412950,19.34,167.67,167.63,5.96539589]
[1747493425461,126.73010914,167.68,167.63,5.96539589]
[1747493444574,19.28,167.69,167.63,5.96539589]
[1747493444779,19.28,167.71,167.63,20.87919413]
[1747493445471,19.28,167.71,167.63,25.12364354]
[1747493447473,25.24272978,167.71,167.63,25.12364354]
[1747493447657,25.24272978,167.71,167.63,20.87919413]
[1747493453072,19.28,167.71,167.63,20.87919413]
[1747493453372,25.24273655,167.71,167.63,20.87919413]
[1747493456964,19.28,167.71,167.63,20.87919413]
[1747493457847,25.24267584,167.71,167.63,20.87919413]
[1747493459676,19.28,167.71,167.63,20.87919413]
[1747493461965,19.28,167.71,167.65,5.96480763]
[1747493462360,19.26,167.72,167.65,5.96480763]
[1747493462784,132.69220548,167.73,167.65,5.96480763]
[1747493463082,151.95220548,167.73,167.65,5.96480763]
[1747493464684,126.73010914,167.73,167.66,18.64964886]
[1747493464872,145.99010914,167.73,167.66,18.64964886]
[1747493465079,126.73010914,167.73,167.66,18.64964886]
[1747493465576,126.73010914,167.73,167.69,26.0]
[1747493466179,126.73010914,167.73,167.7,18.64964886]
[1747493466379,5.95991169,167.79,167.72,26.0]
[1747493466567,132.68965328,167.8,167.74,5.96160724]
[1747493466770,19.26,167.79,167.74,5.96160724]
[1747493466971,126.73010914,167.8,167.74,5.96160724]
[1747493467173,145.99010914,167.8,167.74,5.96160724]
[1747493467953,151.94969879,167.8,167.74,5.96160724]
[1747493468154,1.19119612,167.79,167.73,31.96189979]
[1747493468775,7.15106378,167.79,167.73,31.96189979]
[1747493471096,1.19119612,167.79,167.73,31.96189979]
[1747493472400,151.94963012,167.8,167.73,31.96189979]
[1747493473415,145.99010914,167.8,167.73,31.96189979]
[1747493474698,151.94958546,167.8,167.73,31.96189979]
[1747493475189,126.73010914,167.8,167.73,31.96189979]
[1747493475513,145.99010914,167.8,167.73,31.96189979]
[1747493477518,126.73010914,167.8,167.73,46.86680648]
[1747493481125,19.26,167.81,167.73,46.86680648]
[1747493483726,20.45119612,167.82,167.73,46.86680648]
[1747493485396,1.19119612,167.82,167.73,46.86680648]
[1747493485616,145.99010914,167.83,167.75,18.64964886]
[1747493485811,0.4734,167.86,167.78,26.0]
[1747493486016,19.7334,167.86,167.78,26.0]
[1747493486220,19.26,167.86,167.78,26.0]
[1747493486512,19.26,167.86,167.77,26.0]
[1747493486919,20.45119612,167.86,167.78,5.96018595]
[1747493487218,20.45119612,167.86,167.78,20.86065084]
[1747493487525,19.26,167.86,167.78,20.86065084]
[1747493489726,126.73010914,167.87,167.78,20.86065084]
[1747493489902,19.26,167.86,167.78,20.86065084]
[1747493490104,19.26,167.86,167.78,46.86065084]
[1747493490319,145.99010914,167.87,167.78,46.86065084]
[1747493492529,132.68714135,167.87,167.78,46.86065084]
[1747493492831,19.24,167.86,167.78,46.86065084]
[1747493495332,20.43119612,167.86,167.78,46.86065084]
[1747493496811,26.38857896,167.86,167.78,46.86065084]
[1747493497027,20.43119612,167.86,167.78,46.86065084]
[1747493507422,19.24,167.86,167.78,46.86065084]
[1747493511650,26.38854687,167.86,167.78,46.86065084]
[1747493511845,26.38854687,167.86,167.78,31.96018595]
[1747493512041,26.38854687,167.86,167.77,5.96042063]
[1747493512949,26.38854687,167.86,167.76,31.96086386]
[1747493513926,41.28191038,167.86,167.76,31.96086386]
[1747493514236,5.95805529,167.84,167.76,31.96086386]
[1747493514443,1.19119612,167.84,167.76,31.96086386]
[1747493519229,1.19119612,167.84,167.76,46.86310515]
[1747493519529,126.73010914,167.85,167.76,46.86310515]
[1747493520055,132.68787555,167.85,167.76,46.86310515]
[1747493520444,19.24,167.84,167.76,46.86310515]
[1747493521860,126.73010914,167.85,167.8,26.0]
[1747493522249,126.73010914,167.85,167.8,33.907]
[1747493522633,126.73010914,167.85,167.81,5.95912043]
[1747493526138,19.24,167.88,167.81,5.95912043]
[1747493526437,38.48,167.88,167.81,5.95912043]
[1747493526844,45.62788074,167.88,167.81,5.95912043]
[1747493527265,39.67119612,167.88,167.81,5.95912043]
[1747493527464,38.48,167.88,167.81,5.95912043]
[1747493527884,19.24,167.88,167.81,20.85692151]
[1747493528576,126.73010914,167.89,167.81,20.85692151]
[1747493529267,126.73010914,167.89,167.84,26.0]
[1747493530371,126.73010914,167.89,167.85,5.95770032]
[1747493532556,126.73010914,167.89,167.84,31.95797337]
[1747493533270,126.73010914,167.89,167.84,46.85311159]
[1747493533664,126.73010914,167.89,167.84,31.95797337]
[1747493536479,1.19119612,167.88,167.81,5.95912043]
[1747493536777,126.73010914,167.87,167.81,5.95912043]
[1747493536960,126.73010914,167.87,167.8,5.95938524]
[1747493536961,20.43119612,167.86,167.8,5.95938524]
[1747493540477,1.19119612,167.86,167.83,26.0]
[1747493540778,126.73010914,167.87,167.83,26.0]
[1747493541865,126.73010914,167.87,167.84,5.95805529]
[1747493542251,126.73010914,167.91,167.84,5.95805529]
[1747493542474,20.43119612,167.9,167.84,5.95805529]
[1747493543775,20.43119612,167.9,167.84,20.85319351]
[1747493544081,19.22,167.9,167.84,20.85319351]
[1747493544259,126.73010914,167.91,167.84,20.85319351]
[1747493548374,126.73010914,167.91,167.87,26.0]
[1747493549788,126.73010914,167.91,167.88,5.95663569]
[1747493550293,126.73010914,167.91,167.87,31.9568886]
[1747493550460,126.73010914,167.91,167.87,26.0]
[1747493551486,126.73010914,167.91,167.87,31.95694532]
[1747493558786,19.6934,167.97,167.87,31.95694532]
[1747493558787,126.73010914,167.96,167.87,48.45002164]
[1747493558967,19.22,167.95,167.87,48.45002164]
[1747493559478,126.73010914,167.96,167.91,26.0]
[1747493560793,126.73010914,167.96,167.92,5.95521676]